bitfinex/quotes_BTCUSD_20250218
["timestamp","ask_amount","ask_price","bid_price","bid_amount"]
[1739904095199,5.00865473,94041.0,94040.0,5.73210387]
[1739904095391,5.01113606,94041.0,94040.0,5.73210387]
[1739904096555,5.03113606,94041.0,94040.0,5.73210387]
[1739904097379,5.03113606,94041.0,94040.0,5.17977473]
[1739904097607,5.03813606,94041.0,94040.0,5.17977473]
[1739904097801,5.03113606,94041.0,94040.0,5.17977473]
[1739904098002,5.04031653,94041.0,94040.0,5.17977473]
[1739904098198,4.8296294,94041.0,94040.0,5.17977473]
[1739904098423,4.8296297,94041.0,94040.0,5.17977473]
[1739904099472,4.84630701,94041.0,94040.0,5.17977473]
[1739904100292,5.03930701,94041.0,94040.0,4.62744559]
[1739904100647,5.03230701,94041.0,94040.0,4.62744559]
[1739904101567,5.03930701,94041.0,94040.0,4.57352559]
[1739904101767,5.03230701,94041.0,94040.0,4.57352559]
[1739904102174,5.03930701,94041.0,94040.0,4.57352559]
[1739904102374,5.0226297,94041.0,94040.0,4.5568473]
[1739904103371,5.03930817,94041.0,94040.0,3.78950053]
[1739904103576,5.03930817,94041.0,94040.0,3.73611253]
[1739904103891,5.03230817,94041.0,94040.0,3.73611253]
[1739904104096,5.03930817,94041.0,94040.0,3.73611253]
[1739904104297,5.03230817,94041.0,94040.0,3.73611253]
[1739904104728,5.03930817,94041.0,94040.0,3.73611253]
[1739904104935,5.03230817,94041.0,94040.0,3.73611253]
[1739904105135,5.03930817,94041.0,94040.0,3.73611253]
[1739904105511,5.03230817,94041.0,94040.0,3.73611253]
[1739904105946,5.00930817,94041.0,94040.0,3.73611253]
[1739904106143,4.71101944,94041.0,94040.0,3.73611253]
[1739904106346,4.73096337,94041.0,94040.0,3.81491253]
[1739904106520,4.88096337,94041.0,94040.0,3.81491253]
[1739904106753,4.93220532,94041.0,94040.0,3.81491253]
[1739904107368,4.93220532,94041.0,94040.0,3.73611253]
[1739904107574,4.92520532,94041.0,94040.0,3.73611253]
[1739904107779,4.92520532,94041.0,94040.0,3.73513967]
[1739904108001,4.93220532,94041.0,94040.0,3.73513967]
[1739904108202,4.92520532,94041.0,94040.0,3.73513967]
[1739904108621,4.93220532,94041.0,94040.0,3.73513967]
[1739904109178,4.93220532,94041.0,94040.0,3.73433967]
[1739904110666,4.92520532,94041.0,94040.0,3.73433967]
[1739904110866,4.89738054,94041.0,94040.0,3.73433967]
[1739904111390,4.92520532,94041.0,94040.0,3.73450997]
[1739904111591,4.93254592,94041.0,94040.0,3.18218083]
[1739904111791,4.92554592,94041.0,94040.0,3.18218083]
[1739904112015,4.93254592,94041.0,94040.0,3.18218083]
[1739904112315,4.92554592,94041.0,94040.0,3.18218083]
[1739904113956,4.29058392,94041.0,94040.0,3.18218083]
[1739904114283,3.07358392,94041.0,94040.0,3.18218083]
[1739904114468,3.05275914,94041.0,94040.0,3.18218083]
[1739904114694,3.04575914,94041.0,94040.0,3.18218083]
[1739904115677,3.05275914,94041.0,94040.0,3.18218083]
[1739904116017,3.08475614,94041.0,94040.0,3.18218083]
[1739904116870,3.07775614,94041.0,94040.0,3.18218083]
[1739904117095,3.08475614,94041.0,94040.0,3.18218083]
[1739904118757,0.27745614,94041.0,94040.0,3.18218083]
[1739904119007,4.93671814,94041.0,94040.0,3.18218083]
[1739904119729,5.01292939,94041.0,94040.0,3.18218083]
[1739904120447,4.85568115,94041.0,94040.0,3.18218083]
[1739904121119,4.82785637,94041.0,94040.0,3.18218083]
[1739904121327,4.85568115,94041.0,94040.0,3.18218083]
[1739904121547,4.84868115,94041.0,94040.0,3.18218083]
[1739904121762,4.82785637,94041.0,94040.0,3.18218083]
[1739904122210,4.88310553,94041.0,94040.0,2.62985169]
[1739904122436,5.07610553,94041.0,94040.0,2.62985169]
[1739904123087,5.06910553,94041.0,94040.0,2.62985169]
[1739904123312,5.07610553,94041.0,94040.0,2.62985169]
[1739904123552,5.06910553,94041.0,94040.0,2.62985169]
[1739904123977,5.07644613,94041.0,94040.0,2.62985169]
[1739904125014,5.07644613,94041.0,94040.0,2.07752255]
[1739904126014,5.04902175,94041.0,94040.0,2.07752255]
[1739904126433,5.07644613,94041.0,94040.0,2.07752255]
[1739904126667,5.06944613,94041.0,94040.0,2.07752255]
[1739904127051,5.07644613,94041.0,94040.0,2.07752255]
[1739904127254,5.06944613,94041.0,94040.0,2.07752255]
[1739904127692,5.07644613,94041.0,94040.0,2.07752255]
[1739904127984,5.06944613,94041.0,94040.0,1.52519341]
[1739904128189,5.02119697,94041.0,94040.0,1.52519341]
[1739904128388,5.01419697,94041.0,94040.0,1.52519341]
[1739904128669,5.01419697,94041.0,94040.0,1.60699341]
[1739904128670,3.90903497,94041.0,94040.0,1.60699341]
[1739904129385,3.83282372,94041.0,94040.0,1.60699341]
[1739904129811,3.96428413,94041.0,94040.0,1.52519341]
[1739904130021,3.94345935,94041.0,94040.0,1.52519341]
[1739904130158,3.96428413,94041.0,94040.0,1.52519341]
[1739904130362,3.93645935,94041.0,94040.0,1.52519341]
[1739904130570,3.79140957,94041.0,94040.0,1.52519341]
[1739904130793,3.81640657,94041.0,94040.0,1.52519341]
[1739904130992,3.81640657,94041.0,94040.0,0.97286427]
[1739904131197,3.78415741,94041.0,94040.0,0.97286427]
[1739904131601,3.79115741,94041.0,94040.0,0.97286427]
[1739904132676,3.94115741,94041.0,94040.0,0.97286427]
[1739904132956,3.93415741,94041.0,94040.0,0.97286427]
[1739904133306,3.94115741,94041.0,94040.0,0.97286427]
[1739904133530,3.99640657,94041.0,94040.0,0.97286427]
[1739904134028,3.92019532,94041.0,94040.0,0.97286427]
[1739904134661,3.91319532,94041.0,94040.0,0.97286427]
[1739904134923,3.86494616,94041.0,94040.0,0.97286427]
[1739904135316,3.89237054,94041.0,94040.0,0.97286427]
[1739904135547,3.92019532,94041.0,94040.0,0.97286427]
[1739904136138,3.85794616,94041.0,94040.0,0.97286427]
[1739904136342,3.91319532,94041.0,94040.0,0.97286427]
[1739904136545,3.89237054,94041.0,94040.0,0.97286427]
[1739904137183,3.88537054,94041.0,94040.0,0.97286427]
[1739904137364,3.85794616,94041.0,94040.0,0.97286427]
[1739904137743,3.86494616,94041.0,94040.0,0.97286427]
[1739904137945,3.85794616,94041.0,94040.0,0.97286427]
[1739904138653,3.88537054,94041.0,94040.0,0.9615532]
[1739904139053,3.96158179,94041.0,94040.0,0.9615532]
[1739904139465,3.80850888,94041.0,94040.0,0.9615532]
[1739904139811,3.73929763,94041.0,94040.0,0.9615532]
[1739904140012,3.73229763,94041.0,94040.0,0.9615532]
[1739904140369,3.73929763,94041.0,94040.0,0.9615532]
[1739904140568,3.73929763,94041.0,94040.0,0.80839301]
[1739904140775,3.73929763,94041.0,94040.0,0.47849197]
[1739904141002,3.73929763,94041.0,94040.0,0.47646643]
[1739904141230,3.73229763,94041.0,94040.0,0.47451323]
[1739904141399,3.73229763,94041.0,94040.0,0.47262979]
[1739904141601,3.73929763,94041.0,94040.0,0.15272875]
[1739904141827,0.05341622,94039.0,94030.0,0.0788]
[1739904141979,0.15,94037.0,94030.0,0.0788]
[1739904142185,0.20321948,94035.0,94030.0,0.0788]
[1739904142384,4.53435478,94034.0,94030.0,0.0788]
[1739904142627,4.65653,94033.0,94030.0,0.0788]
[1739904142843,4.56177916,94032.0,94031.0,5.86157582]
[1739904143007,4.616696,94032.0,94031.0,5.80819646]
[1739904144255,4.623696,94032.0,94031.0,5.80819646]
[1739904144456,4.616696,94032.0,94031.0,5.80819646]
[1739904144633,4.71590725,94032.0,94031.0,5.80819646]
[1739904144849,4.87290725,94032.0,94031.0,5.80819646]
[1739904146168,4.86590725,94032.0,94031.0,5.80819646]
[1739904146369,4.87290725,94032.0,94031.0,5.80819646]
[1739904146574,4.86590725,94032.0,94031.0,5.80819646]
[1739904146784,4.86590725,94032.0,94031.0,5.80836676]
[1739904147101,4.87290725,94032.0,94031.0,5.80836676]
[1739904149748,4.6149015,94032.0,94031.0,5.80836676]
[1739904152471,5.20576724,94032.0,94031.0,4.9975222]
[1739904152673,5.25824563,94032.0,94031.0,4.9975222]
[1739904153287,5.25124563,94032.0,94031.0,4.9975222]
[1739904153492,5.18203438,94032.0,94031.0,4.9975222]
[1739904153937,5.17503438,94032.0,94031.0,4.9975222]
[1739904154158,5.18203438,94032.0,94031.0,4.24910856]
[1739904154357,5.39323438,94032.0,94031.0,2.5544352]
[1739904154568,5.39323438,94032.0,94031.0,1.66229277]
[1739904154771,5.36809537,94032.0,94031.0,1.19376961]
[1739904154949,0.02,94023.0,94022.0,5.69396186]
[1739904155155,0.5172,94023.0,94022.0,5.44895983]
[1739904155349,1.29377106,94023.0,94022.0,5.4825105]
[1739904155551,1.20223168,94023.0,94022.0,5.4825105]
[1739904155760,5.53341706,94023.0,94022.0,5.4825105]
[1739904156133,5.54041706,94023.0,94022.0,5.4825105]
[1739904156359,4.92261706,94023.0,94022.0,5.4825105]
[1739904156580,4.90741584,94023.0,94022.0,5.4825105]
[1739904156784,4.91441584,94023.0,94022.0,5.4825105]
[1739904156963,4.91441584,94023.0,94022.0,5.48241977]
[1739904157343,4.93741584,94023.0,94022.0,5.48241977]
[1739904157630,4.93041584,94023.0,94022.0,5.48241977]
[1739904159118,4.93741584,94023.0,94022.0,5.48241977]
[1739904159552,4.99114207,94023.0,94022.0,5.16251191]
[1739904159739,4.98414207,94023.0,94022.0,5.16251191]
[1739904159871,4.98414207,94023.0,94022.0,5.16268221]
[1739904160074,4.99114207,94023.0,94022.0,5.16268221]
[1739904160288,4.98414207,94023.0,94022.0,5.16268221]
[1739904160696,4.99114207,94023.0,94022.0,5.16268221]
[1739904160893,4.99114207,94023.0,94022.0,4.48275307]
[1739904161151,2.13709607,94023.0,94022.0,1.53689269]
[1739904161501,0.04,94005.0,94004.0,4.76428451]
[1739904161712,0.2126762,94001.0,94000.0,0.52473665]
[1739904161916,0.61308745,94001.0,94000.0,0.60123665]
[1739904162110,0.82236629,94001.0,94000.0,0.60123665]
[1739904162316,0.82140907,94001.0,94000.0,0.60123665]
[1739904162865,3.38450804,94001.0,94000.0,0.60123665]
[1739904163126,3.42750804,94001.0,94000.0,0.52473665]
[1739904163335,3.44784742,94001.0,94000.0,0.52473665]
[1739904163556,3.45484742,94001.0,94000.0,0.52473665]
[1739904163957,3.40050804,94001.0,94000.0,0.52473665]
[1739904164174,3.44137104,94001.0,94000.0,0.52373665]
[1739904164385,3.37249917,94001.0,94000.0,0.52373665]
[1739904165066,3.46871042,94001.0,94000.0,0.52373665]
[1739904165266,3.47571042,94001.0,94000.0,0.52373665]
[1739904165418,3.46871042,94001.0,94000.0,0.52373665]
[1739904165984,3.45571042,94001.0,94000.0,0.52373665]
[1739904166178,3.44871042,94001.0,94000.0,0.52373665]
[1739904166337,3.42571042,94001.0,94000.0,0.52373665]
[1739904166568,3.39837104,94001.0,94000.0,0.52373665]
[1739904166941,3.40537104,94001.0,94000.0,0.52373665]
[1739904168304,3.39837104,94001.0,94000.0,0.52373665]
[1739904168508,3.40537104,94001.0,94000.0,0.52373665]
[1739904168805,3.39837104,94001.0,94000.0,0.52373665]
[1739904169031,3.38655939,94001.0,94000.0,0.52373665]
[1739904169243,3.39355939,94001.0,94000.0,0.52373665]
[1739904169429,3.38655939,94001.0,94000.0,0.52373665]
[1739904169947,3.39355939,94001.0,94000.0,0.52373665]
[1739904170151,3.41655939,94001.0,94000.0,0.52373665]
[1739904170351,3.47091278,94001.0,94000.0,0.52373665]
[1739904170557,3.49091278,94001.0,94000.0,0.52373665]
[1739904170761,0.27265247,94000.0,93992.0,0.0803]
[1739904170989,2.81846706,94000.0,93992.0,0.0803]
[1739904171191,3.14266706,94000.0,93992.0,0.0803]
[1739904171580,3.08831367,94000.0,93992.0,0.0803]
[1739904172317,3.09531367,94000.0,93992.0,0.0803]
[1739904172882,3.09531367,94000.0,93989.0,0.10759806]
[1739904172883,2.90231367,94000.0,93999.0,0.1282702]
[1739904173112,2.87701459,94000.0,93999.0,0.1282702]
[1739904173524,3.02701459,94000.0,93999.0,0.1282702]
[1739904173921,2.87701459,94000.0,93999.0,0.1282702]
[1739904174138,1.24126859,94000.0,93999.0,0.1282702]
[1739904174341,0.95913041,94000.0,93999.0,0.1282702]
[1739904174568,1.10913041,94000.0,93999.0,0.1282702]
[1739904174782,1.11613041,94000.0,93999.0,0.1282702]
[1739904174977,0.96613041,94000.0,93999.0,0.1282702]
[1739904175187,0.95913041,94000.0,93999.0,0.1282702]
[1739904175799,1.10913041,94000.0,93999.0,0.1282702]
[1739904177288,0.15,93999.0,93995.0,5.51720662]
[1739904177494,0.309581,93996.0,93995.0,5.48020151]
[1739904177693,2.76336579,93996.0,93995.0,5.48020151]
[1739904177930,2.78866487,93996.0,93995.0,5.48020151]
[1739904178928,2.76132549,93996.0,93995.0,5.48020151]
[1739904179079,3.08952549,93996.0,93995.0,5.48020151]
[1739904179372,3.08552549,93996.0,93995.0,5.48020151]
[1739904179673,3.09052549,93996.0,93995.0,5.48120151]
[1739904180786,3.06522641,93996.0,93995.0,5.48120151]
[1739904181188,3.47772641,93996.0,93995.0,5.48120151]
[1739904182043,3.50302549,93996.0,93995.0,5.48120151]
[1739904182303,3.62223674,93996.0,93995.0,2.5210693]
[1739904182505,3.64957612,93996.0,93995.0,2.5210693]
[1739904182721,3.64957612,93996.0,93995.0,1.50078282]
[1739904183176,3.64957612,93996.0,93995.0,1.48126159]
[1739904183393,0.02,93987.0,93986.0,5.57849865]
[1739904183600,1.14301408,93987.0,93986.0,5.57099565]
[1739904183814,1.17096098,93987.0,93986.0,5.51204492]
[1739904184034,1.1996977,93987.0,93986.0,5.19191858]
[1739904184201,1.1996977,93987.0,93986.0,4.5516659]
[1739904184439,1.41328533,93987.0,93986.0,2.54306945]
[1739904184643,1.41328533,93987.0,93986.0,2.22125028]
[1739904184844,1.44530433,93987.0,93986.0,1.90112394]
[1739904185041,1.79650433,93987.0,93986.0,1.02866846]
[1739904185263,1.79650433,93987.0,93986.0,0.33358067]
[1739904185264,1.72760433,93987.0,93986.0,0.33358067]
[1739904185469,0.02,93978.0,93977.0,4.43161761]
[1739904185741,5.60387591,93978.0,93977.0,3.79138884]
[1739904185915,5.58216098,93978.0,93977.0,3.46128641]
[1739904186110,5.60680537,93978.0,93977.0,3.1411874]
[1739904186286,5.60680537,93978.0,93977.0,2.82108156]
[1739904186510,5.76641637,93978.0,93977.0,1.2338911]
[1739904186706,0.05355716,93976.0,93968.0,5.25850137]
[1739904187016,0.023,93971.0,93968.0,5.25850137]
[1739904187223,0.173,93969.0,93968.0,5.25850137]
[1739904187579,5.28300667,93969.0,93968.0,4.61825211]
[1739904187782,5.22935943,93969.0,93968.0,4.61825211]
[1739904187988,5.55355943,93969.0,93968.0,4.61825211]
[1739904188191,4.54294443,93969.0,93968.0,4.61825211]
[1739904188398,4.59703299,93969.0,93968.0,4.61825211]
[1739904189408,4.59703299,93969.0,93968.0,4.61616137]
[1739904190169,4.60103299,93969.0,93968.0,4.61616137]
[1739904190372,4.68401275,93969.0,93968.0,4.61616137]
[1739904190574,3.60961275,93969.0,93968.0,4.61616137]
[1739904190784,3.60401275,93969.0,93968.0,4.61616137]
[1739904190978,3.60401275,93969.0,93968.0,4.69766137]
[1739904191540,3.58901275,93969.0,93968.0,4.69766137]
[1739904191745,3.59301275,93969.0,93968.0,4.69766137]
[1739904192180,3.59301275,93969.0,93968.0,4.69757061]
[1739904192181,3.58901275,93969.0,93968.0,4.69757061]
[1739904192401,3.6107859,93969.0,93968.0,4.69757061]
[1739904193503,3.6147859,93969.0,93968.0,4.69757061]
[1739904193712,3.6107859,93969.0,93968.0,4.69757061]
[1739904194030,0.6506859,93969.0,93968.0,4.69757061]
[1739904194242,5.7054009,93969.0,93968.0,4.69757061]
[1739904194385,5.68362775,93969.0,93968.0,4.69757061]
[1739904194810,5.68062775,93969.0,93968.0,4.69757061]
[1739904195018,5.68262775,93969.0,93968.0,4.69757061]
[1739904195417,5.68262775,93969.0,93968.0,4.69774091]
[1739904196429,5.68062775,93969.0,93968.0,4.69774091]
[1739904196677,5.68262775,93969.0,93968.0,4.69774091]
[1739904197362,5.68062775,93969.0,93968.0,4.69774091]
[1739904197862,5.68362775,93969.0,93968.0,4.69774091]
[1739904198187,5.68062775,93969.0,93968.0,4.69774091]
[1739904198391,5.68362775,93969.0,93968.0,4.69774091]
[1739904200053,5.68062775,93969.0,93968.0,4.69774091]
[1739904200411,5.70194712,93969.0,93968.0,4.69774091]
[1739904200608,5.70594712,93969.0,93968.0,4.69774091]
[1739904200830,5.70194712,93969.0,93968.0,4.69774091]
[1739904201145,5.70594712,93969.0,93968.0,4.69774091]
[1739904201922,5.70194712,93969.0,93968.0,4.69774091]
[1739904202375,5.70694712,93969.0,93968.0,4.69774091]
[1739904203560,5.70194712,93969.0,93968.0,4.69774091]
[1739904203762,5.70194712,93969.0,93968.0,4.69674091]
[1739904203956,5.70694712,93969.0,93968.0,4.69674091]
[1739904204156,5.68562775,93969.0,93968.0,4.69674091]
[1739904204537,5.71764475,93969.0,93968.0,4.69674091]
[1739904205368,3.892541,93969.0,93968.0,4.69674091]
[1739904205916,3.259141,93969.0,93968.0,4.69674091]
[1739904206131,2.627341,93969.0,93968.0,4.69674091]
[1739904206280,2.569341,93969.0,93968.0,4.69674091]
[1739904206690,2.564341,93969.0,93968.0,4.69674091]
[1739904206893,2.221041,93969.0,93968.0,4.69674091]
[1739904207118,2.120824,93969.0,93968.0,4.74604091]
[1739904207323,2.034424,93969.0,93968.0,4.74604091]
[1739904207493,1.5725644,93969.0,93968.0,4.74604091]
[1739904207703,0.2382644,93969.0,93968.0,4.74604091]
[1739904208128,0.23761997,93969.0,93968.0,4.74604091]
[1739904208494,0.38761997,93969.0,93968.0,4.74604091]
[1739904209603,0.38661997,93969.0,93968.0,4.74604091]
[1739904211619,0.40330082,93969.0,93968.0,4.73772091]
[1739904212588,0.40330082,93969.0,93968.0,4.72885498]
[1739904212803,0.24367382,93969.0,93968.0,4.72885498]
[1739904212998,0.15078172,93969.0,93968.0,4.72885498]
[1739904213736,0.31040872,93969.0,93968.0,4.72014221]
[1739904213940,0.15078172,93969.0,93968.0,4.72014221]
[1739904214373,0.31040872,93969.0,93968.0,4.72014221]
[1739904214955,0.15078172,93969.0,93968.0,4.72014221]
[1739904215909,0.15078172,93969.0,93968.0,4.71814221]
[1739904216096,0.01746262,93969.0,93968.0,4.71814221]
[1739904216510,0.032005,93985.0,93968.0,4.58734221]
[1739904216511,0.191606,93985.0,93968.0,4.58734221]
[1739904216720,0.212749,94008.0,93968.0,4.58734221]
[1739904216721,0.212788,93991.0,93984.0,0.21476686]
[1739904216916,0.032003,93990.0,93986.0,0.0477]
[1739904217148,0.309594,93988.0,93987.0,0.0823]
[1739904217387,0.159594,93988.0,93987.0,0.0823]
[1739904217535,0.16112114,93988.0,93987.0,0.0823]
[1739904218039,0.00152714,93988.0,93987.0,0.129]
[1739904218445,0.16112114,93988.0,93987.0,0.129]
[1739904218663,0.01667776,93990.0,93987.0,0.0477]
[1739904218820,0.00152797,93988.0,93987.0,0.0477]
[1739904219028,0.309594,93988.0,93987.0,0.0477]
[1739904219230,0.31112197,93988.0,93987.0,0.0477]
[1739904219746,0.31212197,93988.0,93987.0,0.0477]
[1739904219948,0.31112197,93988.0,93987.0,0.0477]
[1739904220344,0.15152797,93988.0,93987.0,0.0497]
[1739904220557,0.31112197,93988.0,93987.0,0.0477]
[1739904220949,0.31112197,93988.0,93987.0,0.1282]
[1739904222217,0.31112197,93988.0,93987.0,0.1242]
[1739904222562,0.15152797,93988.0,93987.0,0.1252]
[1739904222809,0.15152797,93988.0,93987.0,0.1242]
[1739904223151,0.15152797,93988.0,93987.0,0.1272]
[1739904223357,0.15152797,93988.0,93987.0,0.1242]
[1739904223767,0.15152797,93988.0,93987.0,0.1272]
[1739904223973,0.15,93998.0,93989.0,0.0482]
[1739904224142,0.15,93998.0,93987.0,0.003]
[1739904224143,0.15,93998.0,93997.0,0.08476686]
[1739904224345,0.15,93998.0,93997.0,0.20916686]
[1739904224346,0.309577,93998.0,93997.0,0.20916686]
[1739904224545,0.2131056,94001.0,93997.0,0.20916686]
[1739904225331,0.159574,94000.0,93997.0,0.20929916]
[1739904225499,0.0003406,94001.0,93997.0,0.20929916]
[1739904225665,0.159577,93999.0,93997.0,0.20929916]
[1739904226484,0.159577,93998.0,93997.0,0.21129916]
[1739904226684,0.309577,93998.0,93997.0,0.20929916]
[1739904226860,5.364292,93998.0,93997.0,0.20929916]
[1739904227091,5.364292,93998.0,93997.0,0.21229916]
[1739904227295,5.364292,93998.0,93997.0,0.20929916]
[1739904227502,5.364292,93998.0,93997.0,0.1245323]
[1739904227911,5.364292,93998.0,93997.0,0.0001323]
[1739904229892,5.38397007,93998.0,93997.0,0.0001323]
[1739904230093,5.38097007,93998.0,93997.0,0.0001323]
[1739904230319,5.38197007,93998.0,93997.0,0.0001323]
[1739904230482,5.26665507,93998.0,93997.0,0.0001323]
[1739904230685,0.32725507,93998.0,93997.0,0.0001323]
[1739904230884,5.30515507,93998.0,93997.0,0.0003025]
[1739904231134,5.30549547,93998.0,93997.0,0.0003025]
[1739904231672,5.30696594,93998.0,93997.0,0.0003025]
[1739904231885,5.68424352,93998.0,93997.0,0.0003025]
[1739904232134,5.7085426,93998.0,93997.0,0.0003025]
[1739904232730,5.65546502,93998.0,93997.0,0.0003025]
[1739904232958,5.63978695,93998.0,93997.0,0.0003025]
[1739904233174,5.69186453,93998.0,93997.0,0.0003025]
[1739904233555,5.69486453,93998.0,93997.0,0.0003025]
[1739904234807,5.71627631,93998.0,93997.0,0.0003025]
[1739904235261,5.71327631,93998.0,93997.0,0.0003025]
[1739904235503,5.71727631,93998.0,93997.0,0.0003025]
[1739904235908,5.71327631,93998.0,93997.0,0.0003025]
[1739904236086,5.73595583,93998.0,93997.0,0.0013025]
[1739904236322,0.309598,93986.0,93985.0,0.0486]
[1739904236513,5.36444533,93986.0,93985.0,0.0486]
[1739904236743,5.36591521,93986.0,93985.0,0.0486]
[1739904236965,5.39792121,93986.0,93985.0,0.0486]
[1739904237156,0.34320621,93986.0,93985.0,0.0486]
[1739904237362,0.37115311,93986.0,93985.0,0.0486]
[1739904237506,0.309616,93975.0,93974.0,0.16206686]
[1739904237932,5.364331,93975.0,93974.0,0.16206686]
[1739904238134,5.263816,93975.0,93974.0,0.16206686]
[1739904238361,3.86318241,93975.0,93974.0,0.16206686]
[1739904239774,3.86318241,93975.0,93974.0,0.16406686]
[1739904240003,3.9078102,93975.0,93974.0,1e-06]
[1739904240209,0.309627,93969.0,93968.0,4.04586421]
[1739904240413,5.39374786,93969.0,93968.0,4.04586421]
[1739904241251,0.31108596,93969.0,93968.0,4.04586421]
[1739904241481,5.36580096,93969.0,93968.0,4.04586421]
[1739904241839,2.92278596,93969.0,93968.0,4.04586421]
[1739904242652,2.92978596,93969.0,93968.0,4.04586421]
[1739904243432,2.92278596,93969.0,93968.0,4.04586421]
[1739904243630,2.92978596,93969.0,93968.0,4.04586421]
[1739904244055,3.28193286,93969.0,93968.0,1.64824821]
[1739904244257,3.58933286,93969.0,93968.0,1.64824821]
[1739904244420,3.61463194,93969.0,93968.0,1.64824821]
[1739904244622,3.66193194,93969.0,93968.0,0.31136043]
[1739904244892,0.05351216,93967.0,93961.0,0.00765375]
[1739904245108,0.15,93965.0,93961.0,0.00765375]
[1739904245331,0.15,93963.0,93959.0,0.00015148]
[1739904245475,0.20311874,93961.0,93960.0,5.42406826]
[1739904245808,5.25783374,93961.0,93960.0,5.42406826]
[1739904246049,5.27597148,93961.0,93960.0,5.42406826]
[1739904246280,4.26125648,93961.0,93960.0,5.42406826]
[1739904246482,4.24457089,93961.0,93960.0,5.42406826]
[1739904247796,4.37877089,93961.0,93960.0,5.42406826]
[1739904248205,4.38577089,93961.0,93960.0,5.42406826]
[1739904248410,4.32565215,93961.0,93960.0,5.42406826]
[1739904248845,4.38602692,93961.0,93960.0,5.42406826]
[1739904249049,4.17565215,93961.0,93960.0,5.42406826]
[1739904249752,4.13905215,93961.0,93960.0,5.42406826]
[1739904250001,1.56993534,93961.0,93960.0,5.42406826]
[1739904250251,1.57693534,93961.0,93960.0,5.42406826]
[1739904251003,1.88657534,93961.0,93960.0,5.42406826]
[1739904251660,1.87957534,93961.0,93960.0,5.42406826]
[1739904251888,1.88557534,93961.0,93960.0,5.42406826]
[1739904252108,1.87957534,93961.0,93960.0,5.42406826]
[1739904252949,1.86289215,93961.0,93960.0,5.42406826]
[1739904253280,1.33149215,93961.0,93960.0,5.42406826]
[1739904253695,1.65569215,93961.0,93960.0,5.42406826]
[1739904254958,1.68770615,93961.0,93960.0,5.42406826]
[1739904255232,1.36350615,93961.0,93960.0,5.42406826]
[1739904255378,1.36350615,93961.0,93960.0,5.42423846]
[1739904255988,1.38118883,93961.0,93960.0,5.42423846]
[1739904256352,1.36350615,93961.0,93960.0,5.42423846]
[1739904258791,1.12030615,93961.0,93960.0,5.42423846]
[1739904258995,1.12030615,93961.0,93960.0,5.41511169]
[1739904259613,0.82760615,93961.0,93960.0,5.41511169]
[1739904259819,0.16109215,93961.0,93960.0,5.53711169]
[1739904260024,0.15,93965.0,93960.0,5.53711169]
[1739904260244,0.30964,93961.0,93960.0,5.53711169]
[1739904260808,0.15,93961.0,93960.0,5.53711169]
[1739904261666,0.30964,93961.0,93960.0,5.53711169]
[1739904266245,0.32632171,93961.0,93960.0,5.53711169]
[1739904267190,0.32666211,93961.0,93960.0,5.53711169]
[1739904272984,0.3099804,93961.0,93960.0,5.53711169]
[1739904274098,0.0003404,93961.0,93960.0,5.53711169]
[1739904274355,0.1599804,93961.0,93960.0,5.53711169]
[1739904275328,0.0003404,93961.0,93960.0,5.53711169]
[1739904275797,0.1599804,93961.0,93960.0,5.53711169]
[1739904276433,0.1503404,93961.0,93960.0,5.53711169]
[1739904276641,0.3099804,93961.0,93960.0,5.53711169]
[1739904278239,0.1503404,93961.0,93960.0,5.53711169]
[1739904278634,0.3099804,93961.0,93960.0,5.53711169]
[1739904279041,0.1503404,93961.0,93960.0,5.53711169]
[1739904279212,0.3099804,93961.0,93960.0,5.53711169]
[1739904279670,0.1503404,93961.0,93960.0,5.53711169]
[1739904280053,0.3099804,93961.0,93960.0,5.53711169]
[1739904280848,0.3109804,93961.0,93960.0,5.53711169]
[1739904281034,0.1503404,93961.0,93960.0,5.53711169]
[1739904281248,0.3099804,93961.0,93960.0,5.53711169]
[1739904283041,0.3109804,93961.0,93960.0,5.54211169]
[1739904287086,0.3109804,93961.0,93960.0,5.54161169]
[1739904287848,0.3099804,93961.0,93960.0,5.53661169]
[1739904288164,0.3109804,93961.0,93960.0,5.53961169]
[1739904290413,0.3099804,93961.0,93960.0,5.53661169]
[1739904290849,0.14886559,93961.0,93960.0,5.53961169]
[1739904291955,0.001,93961.0,93960.0,5.53961169]
[1739904292253,0.16064,93961.0,93960.0,5.53961169]
[1739904292620,0.16064,93961.0,93960.0,5.41761169]
[1739904293071,0.31064,93961.0,93960.0,5.41461169]
[1739904293274,0.06331345,93961.0,93960.0,5.41461169]
[1739904293625,0.212851,93963.0,93960.0,5.41761169]
[1739904293828,0.212851,93963.0,93960.0,5.41461169]
[1739904294003,0.001,93961.0,93960.0,5.41761169]
[1739904294420,0.0279469,93961.0,93960.0,5.41461169]
[1739904294628,0.16064,93961.0,93960.0,5.41761169]
[1739904296488,0.15964,93961.0,93960.0,5.41461169]
[1739904296687,0.15964,93961.0,93960.0,5.41761169]
[1739904297474,0.15964,93961.0,93960.0,5.41461169]
[1739904297793,0.15964,93961.0,93960.0,5.41861169]
[1739904298138,0.15964,93961.0,93960.0,5.41461169]
[1739904298355,0.15964,93961.0,93960.0,5.41861169]
[1739904299751,0.15964,93961.0,93960.0,5.41461169]
[1739904300110,0.15964,93961.0,93960.0,5.41761169]
[1739904300313,0.15964,93961.0,93960.0,5.41461169]
[1739904300726,0.15964,93961.0,93960.0,5.41761169]
[1739904301119,0.15964,93961.0,93960.0,5.41461169]
[1739904301329,0.15964,93961.0,93960.0,5.41761169]
[1739904301708,0.15964,93961.0,93960.0,5.41461169]
[1739904302341,0.1599804,93961.0,93960.0,5.41461169]
[1739904303202,0.1599804,93961.0,93960.0,5.41761169]
[1739904303395,0.3099804,93961.0,93960.0,5.41461169]
[1739904303742,0.3099804,93961.0,93960.0,5.41761169]
[1739904304192,0.3099804,93961.0,93960.0,5.41461169]
[1739904304343,0.3109804,93961.0,93960.0,5.41761169]
[1739904304563,0.3109804,93961.0,93960.0,5.41461169]
[1739904304976,0.3119804,93961.0,93960.0,5.41761169]
[1739904306188,0.3099804,93961.0,93960.0,5.41461169]
[1739904306499,0.3109804,93961.0,93960.0,5.41761169]
[1739904306706,0.3099804,93961.0,93960.0,5.41461169]
[1739904307031,0.15,93962.0,93960.0,5.41461169]
[1739904307422,0.15964,93961.0,93960.0,5.41461169]
[1739904307726,0.15964,93961.0,93960.0,5.4478707]
[1739904307848,0.15964,93961.0,93960.0,5.41461169]
[1739904308073,0.13728958,93962.0,93960.0,5.41461169]
[1739904308521,0.15964,93961.0,93960.0,5.41461169]
[1739904309231,0.16064,93961.0,93960.0,5.42061169]
[1739904309436,0.002,93961.0,93960.0,5.60081534]
[1739904309593,0.002,93961.0,93960.0,5.54371169]
[1739904309791,0.002,93961.0,93960.0,5.54671169]
[1739904310036,0.001,93961.0,93960.0,5.54371169]
[1739904310275,0.1503404,93969.0,93961.0,0.0777]